bitfinex/quotes_ETHUSD_20250715
["timestamp","ask_amount","ask_price","bid_price","bid_amount"]
[1752577897141,14.70942,2976.8,2976.7,0.4278]
[1752577897565,14.70942,2976.8,2976.3,0.7808]
[1752577897756,10.0,2976.7,2976.4,0.4278]
[1752577897959,0.1672,2976.4,2976.3,0.7808]
[1752577898156,5.3052,2976.4,2976.3,0.7808]
[1752577898530,5.3052,2976.4,2976.3,1.2086]
[1752577898738,5.3052,2976.4,2976.3,4.56847635]
[1752577899042,5.3052,2976.4,2976.3,1.2086]
[1752577900189,5.3052,2976.4,2976.3,4.56847635]
[1752577900337,5.3052,2976.4,2976.3,1.2086]
[1752577900675,5.3052,2976.4,2976.3,0.4278]
[1752577901435,5.3052,2976.4,2976.3,3.78767635]
[1752577901869,5.3052,2976.4,2976.3,4.55927635]
[1752577901870,5.3022,2976.4,2976.3,4.55927635]
[1752577902070,18.068,2976.8,2976.7,3.35942486]
[1752577902272,23.204,2976.8,2976.7,3.78722486]
[1752577903131,13.3712,2976.8,2976.7,3.78722486]
[1752577903335,13.3712,2976.8,2976.7,4.55882486]
[1752577906262,8.068,2976.8,2976.7,4.55882486]
[1752577906595,13.202,2976.8,2976.7,4.55882486]
[1752577907500,8.068,2976.8,2976.7,5.02405381]
[1752577908001,13.203,2976.8,2976.7,5.02405381]
[1752577909887,18.067,2977.9,2977.3,3.35874785]
[1752577910093,45.133,2977.8,2977.7,3.35818806]
[1752577910293,15.133,2977.8,2977.7,3.35818806]
[1752577910798,10.1672,2977.7,2977.6,3.35835669]
[1752577911002,10.1672,2977.7,2977.4,0.8309]
[1752577911190,10.1672,2977.7,2977.1,3.35897332]
[1752577911191,0.1672,2977.4,2977.1,3.35897332]
[1752577911501,0.1672,2977.2,2977.1,3.35897332]
[1752577911707,0.1672,2977.2,2976.9,3.35913573]
[1752577912002,0.1672,2977.2,2977.0,3.78688632]
[1752577912003,5.135,2977.1,2977.0,3.78688632]
[1752577912203,5.135,2977.1,2977.0,0.4278]
[1752577912566,5.135,2977.1,2976.8,4.19015998]
[1752577912768,5.135,2977.1,2976.9,3.7869953]
[1752577912968,5.135,2977.1,2977.0,3.78688632]
[1752577914398,0.1672,2977.2,2977.1,3.35897349]
[1752577914597,0.1672,2977.2,2977.1,3.78677349]
[1752577914598,5.3012,2977.2,2977.1,3.78677349]
[1752577914976,5.3012,2977.2,2977.1,0.4278]
[1752577915174,5.3012,2977.2,2977.1,3.78677349]
[1752577918113,5.134,2977.2,2977.1,4.56157349]
[1752577918629,0.1672,2977.5,2977.4,3.35863505]
[1752577918938,5.2992,2977.5,2977.4,3.35863505]
[1752577919327,5.2992,2977.5,2977.4,3.78643505]
[1752577921624,5.132,2977.5,2977.4,4.54813505]
[1752577921822,5.132,2977.5,2977.4,4.71533505]
[1752577922043,5.132,2977.5,2977.4,5.52274234]
[1752577924811,5.132,2977.5,2977.4,4.71533505]
[1752577927013,5.132,2977.5,2977.4,3.95363505]
[1752577928929,5.129,2977.5,2977.4,1.3625]
[1752577929446,5.129,2977.5,2977.4,4.72113505]
[1752577930155,5.129,2977.5,2977.4,4.00003505]
[1752577931116,5.129,2977.5,2977.4,3.83283505]
[1752577931533,0.1672,2977.7,2977.6,3.35840945]
[1752577931737,5.2972,2977.7,2977.6,3.35840945]
[1752577932359,5.2972,2977.7,2977.6,3.83260945]
[1752577932535,5.2972,2977.7,2977.6,0.4742]
[1752577933648,5.2972,2977.7,2977.6,3.83260945]
[1752577933850,5.2972,2977.7,2977.6,3.35840945]
[1752577934053,5.2972,2977.7,2977.5,3.35845155]
[1752577934383,5.2972,2977.7,2977.5,3.83265155]
[1752577934877,6.63362,2977.7,2977.6,0.4742]
[1752577937484,5.2972,2977.7,2977.6,0.4742]
[1752577937885,5.2992,2977.7,2977.6,0.4742]
[1752577939988,5.2992,2977.7,2977.6,3.83260945]
[1752577940288,0.002,2977.7,2977.6,4.62500945]
[1752577940489,0.002,2977.7,2977.6,4.79220945]
[1752577940688,5.128,2977.7,2977.6,5.60728158]
[1752577942101,5.128,2977.7,2977.6,4.79220945]
[1752577943365,5.128,2977.7,2977.6,3.35840945]
[1752577943570,5.128,2977.7,2977.6,3.83260945]
[1752577944660,5.128,2977.7,2977.4,0.1672]
[1752577944855,5.128,2977.7,2977.4,0.6414]
[1752577945053,5.128,2977.7,2977.5,3.35844202]
[1752577945357,5.128,2977.7,2977.6,3.35840945]
[1752577946925,5.128,2977.7,2977.4,3.52580758]
[1752577946926,6.4475,2977.7,2977.4,3.52581005]
[1752577947194,6.4475,2977.7,2977.5,0.4742]
[1752577947592,4.12746763,2977.6,2977.0,3.35900814]
[1752577947779,5.124,2977.5,2977.0,0.1672]
[1752577948092,5.124,2977.5,2976.8,0.1682]
[1752577948093,0.1672,2977.3,2976.8,0.1682]
[1752577948261,5.125,2977.2,2976.8,0.1682]
[1752577948460,0.7733,2977.1,2976.8,0.1682]
[1752577948717,5.125,2977.0,2976.8,0.6424]
[1752577949898,5.125,2977.0,2976.8,4.00170464]
[1752577950303,5.125,2977.0,2976.8,0.6424]
[1752577950467,5.125,2977.0,2976.8,0.1682]
[1752577950671,5.53129761,2977.0,2976.8,0.001]
[1752577951105,5.125,2977.0,2976.8,0.001]
[1752577951582,5.125,2977.0,2976.8,3.79248767]
[1752577951785,5.125,2977.0,2976.9,0.4322]
[1752577953089,5.125,2977.0,2976.8,0.001]
[1752577953907,0.1672,2976.9,2976.8,0.001]
[1752577954113,14.46884816,2976.9,2976.8,0.001]
[1752577954404,15.56364816,2976.9,2976.8,0.001]
[1752577955192,15.77834816,2976.9,2976.8,0.001]
[1752577955404,46.11364816,2976.9,2976.8,0.001]
[1752577957008,12.419149,2976.9,2976.8,0.001]
[1752577957182,10.9267,2976.9,2976.8,0.001]
[1752577957376,16.0527,2976.9,2976.8,0.001]
[1752577962622,10.9267,2976.9,2976.8,0.001]
[1752577962789,16.0517,2976.9,2976.8,0.001]
[1752577963182,10.1672,2976.9,2976.8,0.001]
[1752577963494,17.12272,2976.9,2976.8,0.001]
[1752577965121,20.48191916,2976.9,2976.8,0.001]
[1752577965890,21.36721916,2976.9,2976.8,0.001]
[1752577966614,51.36721916,2976.9,2976.8,0.001]
[1752577972002,68.95557132,2976.9,2976.8,0.001]
[1752577975043,69.12010543,2976.9,2976.8,0.001]
[1752577975247,3.90998924,2976.2,2976.1,0.041]
[1752577975428,19.79338924,2976.2,2976.1,0.041]
[1752577977641,20.12868924,2976.2,2976.1,0.041]
[1752577978353,50.12868924,2976.2,2976.1,0.041]
[1752577979114,49.79338924,2976.2,2976.1,0.041]
[1752577979320,51.07055101,2976.2,2976.1,0.041]
[1752577980259,14.73761505,2976.0,2975.9,0.001]
[1752577980432,59.62196721,2976.0,2975.9,0.001]
[1752577980633,4.72165381,2975.7,2975.6,0.001]
[1752577980934,49.84865381,2975.7,2975.6,0.001]
[1752577981121,50.86537381,2975.7,2975.6,0.001]
[1752577981322,51.20067381,2975.7,2975.6,0.001]
[1752577982750,50.86537381,2975.7,2975.6,0.001]
[1752577982952,51.20067381,2975.7,2975.6,0.001]
[1752577983726,46.07367381,2975.7,2975.6,0.001]
[1752577983967,51.19967381,2975.7,2975.6,0.001]
[1752577985043,46.07367381,2975.7,2975.6,0.001]
[1752577985244,45.18837381,2975.7,2975.6,0.001]
[1752577985446,50.31537381,2975.7,2975.6,0.001]
[1752577985648,50.86537381,2975.7,2975.6,0.001]
[1752577986467,45.73837381,2975.7,2975.6,0.001]
[1752577986782,20.05527381,2975.7,2975.6,0.4728]
[1752577987154,16.69472,2975.7,2975.6,0.4728]
[1752577987476,20.05527381,2975.7,2975.6,0.4728]
[1752577987674,20.05527381,2975.7,2975.6,0.001]
[1752577988042,11.01672,2975.7,2975.6,0.4728]
[1752577988283,5.128,2975.7,2975.6,4.61616675]
[1752577988579,8.068,2976.3,2975.9,3.3602468]
[1752577988808,0.168,2976.0,2975.7,3.36045747]
[1752577988937,0.168,2976.0,2975.9,3.36032796]
[1752577989138,5.298,2976.0,2975.9,3.36032796]
[1752577989375,5.298,2976.0,2975.9,3.83212796]
[1752577989739,15.298,2976.0,2975.9,3.83212796]
[1752577990239,0.168,2976.0,2975.9,3.83212796]
[1752577990436,8.068,2976.3,2976.2,3.35998924]
[1752577990638,43.3642,2976.3,2976.2,0.4718]
[1752577993868,13.196,2976.3,2976.2,3.83178924]
[1752577995465,13.196,2976.3,2976.2,0.4718]
[1752577995918,14.6828,2976.3,2975.9,0.7657]
[1752577996050,17.87556334,2976.3,2975.9,0.4718]
[1752577996252,0.168,2976.0,2975.9,0.4718]
[1752577996475,5.295,2976.0,2975.9,0.4718]
[1752577996681,6.16051217,2976.0,2975.7,0.4718]
[1752577997066,6.16051217,2976.0,2975.6,4.12733597]
[1752577997286,6.16051217,2976.0,2975.8,0.4718]
[1752577997484,6.16051217,2976.0,2975.8,3.36038496]
[1752577997653,5.295,2976.0,2975.9,0.4718]
[1752577997858,5.295,2976.0,2975.7,3.83231057]
[1752577998056,5.295,2976.0,2975.8,0.4718]
[1752577998290,5.295,2976.0,2975.9,0.4718]
[1752578000456,5.295,2976.0,2975.9,3.83212796]
[1752578001092,0.168,2976.0,2975.9,3.83212796]
[1752578001417,5.294,2976.0,2975.9,3.83212796]
[1752578002089,9.3876,2976.3,2975.9,3.83212796]
[1752578002090,8.068,2976.3,2976.2,3.35998924]
[1752578002408,13.194,2976.3,2976.2,3.35998924]
[1752578002575,13.194,2976.3,2976.2,3.83178924]
[1752578002970,8.068,2976.3,2976.2,4.62828924]
[1752578003298,13.194,2976.3,2976.2,4.62828924]
[1752578004561,8.068,2976.3,2976.2,4.62828924]
[1752578004803,13.194,2976.3,2976.2,4.62828924]
[1752578006924,13.194,2976.3,2976.2,3.83178924]
[1752578007125,14.53012,2976.3,2976.2,3.83178924]
[1752578007877,14.53012,2976.3,2976.2,3.35998924]
[1752578008106,14.53012,2976.3,2976.2,3.83178924]
[1752578008726,14.53012,2976.3,2976.2,0.4718]
[1752578009045,14.53012,2976.3,2976.2,3.83178924]
[1752578012428,13.194,2976.3,2976.2,3.83178924]
[1752578014026,13.194,2976.3,2976.1,3.36004238]
[1752578014179,13.194,2976.3,2976.1,3.81244238]
[1752578016407,13.194,2976.3,2976.2,3.35998924]
[1752578016614,13.194,2976.3,2976.2,0.4524]
[1752578017214,13.194,2976.3,2976.2,3.81238924]
[1752578017612,8.068,2976.3,2976.2,3.81238924]
[1752578017813,8.068,2976.3,2976.2,3.35998924]
[1752578018012,13.186,2976.3,2976.2,3.81238924]
[1752578018184,8.068,2976.3,2976.2,3.81238924]
[1752578018384,13.186,2976.3,2976.2,3.81238924]
[1752578019829,5.118,2976.3,2976.2,3.81238924]
[1752578020001,5.117,2976.3,2976.2,3.81238924]
[1752578027314,5.117,2976.3,2976.2,3.35998924]
[1752578027631,5.117,2976.3,2976.2,3.81238924]
[1752578031836,5.64542,2976.3,2976.1,3.36003655]
[1752578032140,5.81262,2976.3,2976.1,3.36003655]
[1752578032734,5.81262,2976.3,2976.0,3.81259028]
[1752578033436,5.81262,2976.3,2976.1,3.36010152]
[1752578033638,5.81262,2976.3,2976.0,3.81256083]
[1752578033839,0.581262,2976.2,2976.0,3.81256083]
[1752578034002,5.113,2976.1,2976.0,3.81256083]
[1752578034204,5.113,2976.1,2975.9,3.36127121]
[1752578034418,0.168,2976.0,2975.9,3.36127121]
[1752578036745,0.168,2976.0,2975.9,3.81367121]
[1752578037350,5.282,2976.0,2975.9,3.81367121]
[1752578040150,0.168,2976.0,2975.9,3.81367121]
[1752578040318,5.281,2976.0,2975.9,3.81367121]
[1752578041561,5.281,2976.0,2975.9,3.36127121]
[1752578044023,5.281,2976.0,2975.9,3.79517121]
[1752578044861,5.281,2976.0,2975.9,0.4349]
[1752578044862,5.113,2976.0,2975.9,0.4349]
[1752578045036,5.113,2976.0,2975.9,3.79522796]
[1752578045242,0.1672,2976.3,2976.2,3.35998924]
[1752578045441,15.2802,2976.3,2976.2,3.35998924]
[1752578045643,15.2802,2976.3,2976.2,3.79388924]
[1752578045960,16.88878,2976.3,2976.2,3.79388924]
[1752578046172,8.8995,2976.7,2976.5,3.3596361]
[1752578046338,15.113,2976.6,2976.5,3.3596361]
[1752578046668,15.2802,2976.6,2976.5,3.7935361]
[1752578048465,15.2802,2976.6,2976.5,0.4339]
[1752578048626,15.2802,2976.6,2976.4,3.35973056]
[1752578048832,15.2802,2976.6,2976.3,3.35982464]
[1752578049131,30.8177,2976.5,2976.0,3.36011659]
[1752578049334,0.1672,2976.3,2976.0,3.79403149]
[1752578049661,5.113,2976.2,2976.0,3.79403149]
[1752578050060,5.113,2976.2,2976.1,0.4339]
[1752578050448,5.113,2976.2,2976.0,3.3601996]
[1752578050881,5.113,2976.2,2976.0,3.7940996]
[1752578051186,5.113,2976.2,2976.1,3.79400214]
[1752578052755,5.64102,2976.2,2976.0,3.79406635]
[1752578053174,0.52802,2976.2,2975.9,0.001]
[1752578053395,5.113,2976.1,2975.9,3.36126705]
[1752578053714,5.113,2976.0,2975.9,3.79516705]
[1752578055780,10.0,2976.6,2975.9,0.4349]
[1752578055978,5.113,2976.5,2976.3,3.35979547]
[1752578056179,5.2802,2976.5,2976.4,0.4339]
[1752578057097,5.2802,2976.5,2976.2,3.7938475]
[1752578058381,5.113,2976.4,2976.2,3.7938475]
[1752578058694,15.113,2976.3,2976.2,3.7938475]
[1752578061275,15.113,2976.3,2976.2,0.4339]
[1752578062585,15.113,2976.3,2975.9,3.79519334]
[1752578062758,15.113,2976.3,2975.9,3.36129334]
[1752578062957,1.65733837,2976.2,2976.0,3.79405793]
[1752578063294,5.113,2976.1,2976.0,3.79405793]
[1752578063455,4.70941786,2976.1,2976.0,3.79405793]
[1752578066163,8.069,2976.3,2976.2,4.14068924]
[1752578066372,13.182,2976.3,2976.2,4.57458924]
[1752578067570,8.069,2976.3,2976.2,4.57458924]
[1752578067893,13.182,2976.3,2976.2,5.38485746]
[1752578068199,13.182,2976.3,2976.2,4.57458924]
[1752578072475,13.182,2976.3,2976.1,0.168]
[1752578072663,13.182,2976.3,2976.2,3.35998924]
[1752578073273,13.181,2976.3,2976.0,0.168]
[1752578073468,12.77745522,2976.3,2976.0,0.6006]
[1752578073901,12.77745522,2976.3,2976.1,3.36010214]
[1752578075117,12.77745522,2976.3,2976.0,3.52821037]
[1752578075493,14.80568602,2976.3,2976.0,3.52821037]
[1752578075689,15.11511602,2976.3,2976.0,3.52821037]
[1752578076015,0.8042,2976.0,2975.9,0.001]
[1752578076213,15.51262542,2976.0,2975.9,0.001]
[1752578080197,10.40062542,2976.0,2975.9,0.001]
[1752578080380,15.51262542,2976.0,2975.9,0.001]
[1752578081222,10.40062542,2976.0,2975.9,0.001]
[1752578081424,15.51262542,2976.0,2975.9,0.001]
[1752578082317,10.0,2976.0,2975.9,3.36132796]
[1752578082493,0.168,2976.1,2976.0,3.36021505]
[1752578082821,5.112,2976.1,2976.0,3.79278764]
[1752578083695,8.14208522,2976.3,2976.2,3.35998924]
[1752578084017,13.08688522,2976.3,2976.2,4.60548924]
[1752578084221,13.08688522,2976.3,2976.2,5.40204734]
[1752578085219,0.002,2976.5,2976.4,4.17266347]
[1752578085430,5.114,2976.5,2976.4,4.2062611]
[1752578085722,0.002,2976.9,2976.8,3.35931201]
[1752578085900,5.114,2976.9,2976.8,4.17221201]
[1752578086226,5.114,2976.9,2976.8,4.77201201]
[1752578087327,6.4432,2976.9,2976.4,0.4326]
[1752578087507,6.4432,2976.9,2976.7,3.35938772]
[1752578088421,6.4432,2976.9,2976.6,3.35946224]
[1752578088730,0.8128,2976.7,2976.3,0.1672]
[1752578088930,5.112,2976.6,2976.5,3.35958441]
[1752578090436,5.112,2976.6,2976.5,3.79218441]
[1752578090838,0.1672,2976.8,2976.6,3.35948309]
[1752578091162,5.111,2976.7,2976.6,3.35948309]
[1752578093857,0.1672,2976.8,2976.6,3.35948309]
[1752578093858,0.1672,2976.8,2976.7,3.35942486]
[1752578094068,5.2782,2976.8,2976.7,3.35942486]
[1752578094341,5.93738,2976.8,2976.5,0.001]
[1752578094514,10.0,2976.7,2976.5,0.001]
[1752578094719,15.111,2976.6,2976.5,3.36059828]
[1752578102438,15.111,2976.6,2976.5,0.001]
[1752578102651,16.60807938,2976.6,2976.5,0.001]
[1752578103054,16.60807938,2976.6,2976.5,3.36065059]
[1752578104259,16.60807938,2976.6,2976.5,0.001]
[1752578104954,16.60807938,2976.6,2976.5,3.36065059]
[1752578105160,15.111,2976.6,2976.5,3.36065059]
[1752578105655,15.111,2976.6,2976.5,3.82305059]
[1752578107518,15.111,2976.6,2976.5,0.001]
[1752578108279,20.28293772,2976.6,2976.5,0.001]
[1752578108440,50.28293772,2976.6,2976.5,0.001]
[1752578110844,4.71991505,2976.0,2975.9,0.001]
[1752578111034,26.34086782,2976.0,2975.9,0.001]
[1752578111258,26.67616782,2976.0,2975.9,0.001]
[1752578111584,56.67616782,2976.0,2975.9,0.001]
[1752578116138,64.50616782,2976.0,2975.9,0.001]
[1752578116998,3.91055381,2975.7,2975.6,0.001]
[1752578117140,64.35630658,2975.7,2975.6,0.001]
[1752578117338,72.52160658,2975.7,2975.6,0.001]
[1752578123793,21.17484542,2975.4,2975.3,0.001]
[1752578124083,56.28684542,2975.4,2975.3,0.001]
[1752578124455,56.62214542,2975.4,2975.3,0.001]
[1752578129004,47.81395277,2975.4,2975.3,0.001]
[1752578129299,52.92695277,2975.4,2975.3,0.001]
[1752578129501,56.28784542,2975.4,2975.3,0.001]
[1752578129960,51.17484542,2975.4,2975.3,0.001]
[1752578130595,52.92695277,2975.4,2975.3,0.001]
[1752578130999,56.28784542,2975.4,2975.3,0.001]
[1752578132764,56.62314542,2975.4,2975.3,0.001]
[1752578133004,56.28784542,2975.4,2975.3,0.001]
[1752578133614,52.92695277,2975.4,2975.3,0.001]
[1752578133988,56.28784542,2975.4,2975.3,0.001]
[1752578134613,56.62314542,2975.4,2975.3,0.001]
[1752578135617,56.28784542,2975.4,2975.3,0.001]
[1752578136520,56.62314542,2975.4,2975.3,0.001]
[1752578138417,3.91111858,2975.2,2975.1,0.04]
[1752578138622,49.83581858,2975.2,2975.1,0.04]
[1752578138795,50.17111858,2975.2,2975.1,0.04]
[1752578140620,50.34028144,2975.2,2975.1,0.04]
[1752578142305,50.5953476,2975.2,2975.1,0.04]
[1752578142691,58.4253476,2975.2,2975.1,0.04]
[1752578142906,52.72198144,2975.2,2975.1,0.04]
[1752578143201,57.66581858,2975.2,2975.1,0.04]
[1752578143405,52.55281858,2975.2,2975.1,0.04]
[1752578143607,57.66581858,2975.2,2975.1,0.04]
[1752578144900,52.55281858,2975.2,2975.1,0.04]
[1752578145204,57.66581858,2975.2,2975.1,0.04]
[1752578146127,57.83295538,2975.2,2975.1,0.04]
[1752578146483,58.16825538,2975.2,2975.1,0.04]
[1752578148803,58.41809973,2975.2,2975.1,0.04]
[1752578151031,21.3712973,2975.0,2974.9,0.001]
[1752578151192,56.4842973,2975.0,2974.9,0.001]
[1752578151696,64.3142973,2975.0,2974.9,0.001]
[1752578152568,64.8642973,2975.0,2974.9,0.001]
[1752578152847,64.8642973,2975.0,2974.1,0.4685]
[1752578152848,10.0,2974.3,2974.1,0.4685]
[1752578153171,10.0,2974.3,2974.1,0.041]
[1752578153172,63.60920144,2974.2,2974.1,0.041]
[1752578154344,64.37330144,2974.2,2974.1,0.041]
[1752578155067,63.60920144,2974.2,2974.1,0.4685]
[1752578155763,64.42110144,2974.2,2974.1,0.041]
[1752578155965,64.42110144,2974.2,2973.4,0.8222]
[1752578155966,3.91294927,2973.6,2973.4,0.4275]
[1752578156261,3.91294927,2973.6,2973.2,0.7578]
[1752578156262,51.62295277,2973.5,2973.2,0.7578]
[1752578156464,21.62295277,2973.5,2973.2,0.7578]
[1752578156818,21.62295277,2973.5,2973.3,0.4275]
[1752578157267,21.62295277,2973.5,2973.4,0.4275]
[1752578158258,54.98599295,2973.5,2973.4,0.4275]
[1752578158561,55.24137815,2973.5,2973.4,0.4275]
[1752578158859,51.87833797,2973.5,2973.4,0.4275]
[1752578159060,0.168,2973.4,2973.2,0.4275]
[1752578159265,11.62295277,2973.3,2973.2,0.4275]
[1752578159479,10.0,2973.2,2973.1,0.04]
[1752578159697,10.168,2973.2,2973.1,0.04]
[1752578160243,13.53137952,2973.2,2973.1,0.4826]
[1752578160677,13.53137952,2973.2,2973.1,0.04]
[1752578160900,13.53137952,2973.2,2973.1,0.4826]
[1752578161680,10.168,2973.2,2973.1,0.4826]
[1752578161885,13.53137952,2973.2,2973.1,0.4826]
[1752578162592,13.53137952,2973.2,2973.1,0.04]
[1752578162890,14.08137952,2973.2,2973.1,0.04]
[1752578163488,44.08137952,2973.2,2973.1,0.04]
[1752578164988,44.41667952,2973.2,2973.1,0.04]
[1752578165164,14.41667952,2973.2,2973.1,0.04]
[1752578165366,44.08137952,2973.2,2973.1,0.04]
[1752578166776,44.89707952,2973.2,2973.1,0.04]
[1752578166993,10.0,2972.4,2972.3,0.4426]
[1752578167194,33.06523752,2972.4,2972.3,0.4426]
[1752578167381,10.168,2972.3,2972.1,0.4826]
[1752578167581,15.114,2972.2,2972.1,0.04]
[1752578168282,15.114,2972.2,2972.1,0.4826]
[1752578169489,10.0,2972.2,2972.1,3.84722433]
[1752578169712,8.077,2972.4,2972.3,4.16149794]
[1752578169889,13.192,2972.4,2972.3,4.60409794]
[1752578170692,13.192,2972.4,2972.3,1.2397]
[1752578170892,14.528,2972.4,2972.3,1.2397]
[1752578171094,0.168,2972.3,2972.1,0.04]
[1752578171402,5.114,2972.2,2972.1,0.4826]
[1752578171729,15.114,2972.2,2972.1,0.4826]
[1752578172032,19.81017051,2972.2,2972.1,0.4826]
[1752578172326,16.44565938,2972.2,2972.1,0.4826]
[1752578172536,46.44565938,2972.2,2972.1,0.4826]
[1752578173289,46.44565938,2972.2,2972.1,0.04]
[1752578173290,46.99565938,2972.2,2972.1,0.04]
[1752578173494,11.33165938,2972.2,2972.1,1.3097]
[1752578173699,8.077,2972.4,2972.3,3.36439794]
[1752578173937,7.83,2972.8,2972.7,4.15694523]
[1752578174237,8.079,2973.1,2972.9,3.36371657]
[1752578174464,0.168,2972.8,2972.7,4.15693686]
[1752578174664,8.079,2973.1,2973.0,4.12340578]
[1752578174825,13.194,2973.1,2973.0,4.12340578]
[1752578175025,13.194,2973.1,2973.0,4.56600578]
[1752578175453,8.079,2973.1,2973.0,4.56600578]
[1752578175767,13.194,2973.1,2973.0,4.73400578]
[1752578176337,8.078,2974.2,2973.8,4.13433233]
[1752578176533,35.114,2974.1,2973.9,0.4426]
[1752578176761,35.114,2974.1,2973.1,3.3634122]
[1752578176762,10.168,2973.9,2973.6,0.4426]
[1752578176963,10.168,2973.9,2973.2,3.36333028]
[1752578176964,10.0,2973.7,2973.2,3.36333028]
[1752578177165,35.114,2973.8,2973.1,0.7717]
[1752578177166,0.168,2973.2,2973.1,0.7717]
[1752578177324,0.168,2973.2,2973.0,0.4426]
[1752578177325,10.0,2973.1,2973.0,0.4426]
[1752578177821,10.0,2973.1,2972.8,0.7585]
[1752578178023,10.0,2973.1,2972.7,3.80651688]
[1752578178024,0.168,2972.8,2972.7,3.36394523]
[1752578178225,5.286,2972.8,2972.7,3.36394523]
[1752578178446,5.286,2972.8,2972.7,3.80654523]
[1752578179266,5.286,2972.8,2972.7,0.4426]
[1752578179475,5.286,2972.8,2972.7,3.80654523]
[1752578181179,15.286,2972.8,2972.7,0.4426]
[1752578181337,16.8146,2972.8,2972.7,0.4426]
[1752578181541,16.8146,2972.8,2972.6,0.001]
[1752578181742,16.6466,2972.8,2972.6,0.001]
[1752578181967,40.0,2972.7,2972.6,0.001]
[1752578182172,10.0,2972.7,2972.6,0.001]
[1752578182406,41.68905938,2972.7,2972.6,0.001]
[1752578182567,45.84900461,2972.7,2972.6,0.001]
[1752578183367,46.18430461,2972.7,2972.6,0.001]
[1752578183794,16.18430461,2972.7,2972.6,0.001]
[1752578184004,54.01430461,2972.7,2972.6,0.001]
[1752578184808,54.27232453,2972.7,2972.6,0.001]
[1752578185713,54.26122453,2972.7,2972.6,0.001]
[1752578186076,54.26122453,2972.7,2972.1,0.04]
[1752578186077,24.48404077,2972.2,2972.1,0.04]
[1752578186270,61.13164077,2972.2,2972.1,0.04]
[1752578186611,61.46694077,2972.2,2972.1,0.04]
[1752578186984,52.64812964,2972.2,2972.1,0.04]
[1752578187184,61.13364077,2972.2,2972.1,0.04]
[1752578187386,4.73469046,2971.6,2971.5,0.2495]
[1752578187688,59.6413201,2971.6,2971.5,0.2495]
[1752578187906,59.9766201,2971.6,2971.5,0.2495]
[1752578188239,67.8066201,2971.6,2971.5,1e-08]
[1752578188403,69.3352201,2971.6,2971.5,1e-08]
[1752578189631,69.64895324,2971.6,2971.5,1e-08]
[1752578189802,0.55,2970.8,2970.2,0.0087]
[1752578190139,0.55,2970.8,2969.9,0.7853]
[1752578190140,0.55,2970.5,2969.9,0.7853]
[1752578190440,0.55,2970.5,2968.9,0.7635]
[1752578190441,14.74197664,2970.2,2968.9,0.7635]
[1752578190641,10.0,2969.6,2968.9,0.7635]
[1752578190798,0.55,2969.4,2968.9,0.7635]
[1752578191142,43.217,2969.3,2968.9,0.7635]
[1752578191441,43.217,2969.3,2968.1,3.40909099]
[1752578191442,40.0,2969.2,2968.1,0.04]
[1752578191613,10.0,2969.2,2968.6,0.8306]
[1752578192139,8.081,2969.3,2969.1,0.4987]
[1752578192298,8.081,2969.3,2969.2,4.19851054]
[1752578192503,8.081,2969.3,2969.2,5.46373399]
[1752578192504,13.217,2969.3,2969.2,5.46373399]
[1752578193036,8.081,2969.3,2969.2,5.46373399]
[1752578193253,13.217,2969.3,2969.2,5.46373399]
[1752578193426,13.217,2969.3,2969.2,5.00503399]
[1752578193604,13.217,2969.3,2969.2,4.65721054]
[1752578194011,13.217,2969.3,2969.2,1.2893]
[1752578194216,8.081,2969.3,2969.1,0.04]
[1752578194429,13.227,2969.3,2969.1,0.4987]
[1752578194842,8.081,2969.3,2969.2,0.4587]
[1752578195045,13.226,2969.3,2969.2,3.82661054]
[1752578195346,13.226,2969.3,2969.2,4.55007445]
[1752578196023,13.229,2969.3,2969.2,4.55007445]
[1752578196372,13.231,2969.3,2969.2,5.30847445]
[1752578197142,8.081,2969.3,2969.2,5.30847445]
[1752578197305,13.231,2969.3,2969.2,5.30847445]
[1752578197505,13.231,2969.3,2969.2,4.58501054]
[1752578198417,13.23,2969.3,2969.2,4.58501054]
[1752578200924,8.081,2969.3,2969.2,4.58501054]
[1752578201122,8.085,2970.2,2969.4,0.8102]
[1752578201388,8.085,2970.2,2970.1,4.17709]
[1752578201530,13.237,2970.2,2970.1,4.63579]
[1752578202365,13.237,2970.2,2969.8,0.4587]
[1752578202543,8.085,2970.2,2969.8,0.8308723]
[1752578202743,8.085,2970.2,2969.9,0.4587]
[1752578202973,35.161,2970.1,2969.8,0.7972]
[1752578203142,30.0,2970.0,2969.9,0.31156672]
[1752578203374,40.0,2970.0,2969.9,0.31156672]
[1752578203691,40.0,2970.0,2969.1,0.041]
[1752578203692,0.55,2969.8,2969.3,0.4587]
[1752578203848,10.0,2969.6,2969.4,0.31155201]
[1752578204187,35.166,2969.5,2969.1,0.041]
[1752578204352,5.166,2969.5,2969.2,0.3115516]
[1752578204717,5.166,2969.5,2969.1,0.041]
[1752578204718,5.166,2969.5,2969.3,0.3115516]
[1752578204840,15.166,2969.5,2969.4,0.3115516]
[1752578205184,45.166,2969.5,2969.4,3.6792353]
[1752578205340,45.166,2969.5,2969.4,4.1379353]
[1752578205341,15.166,2969.5,2969.4,4.1379353]
[1752578205534,46.6826,2969.5,2969.4,0.3115516]
[1752578205785,11.5166,2969.5,2969.4,0.3115516]
[1752578205988,15.198,2969.5,2969.4,0.3115516]